Cogmind - Beta 16 @@@ ROGUE MODE // 2025.11.23 @ 20:56:54 Player: Mozco Result: Destroyed self with Grenade Launcher Performance ------------- Evolutions (0) 0 Regions Visited (2) 400 Robots Destroyed (24) 120 Value Destroyed (362) 362 Prototype IDs (2) 40 Alien Tech Used (0) 0 Bonus (0) 0 TOTAL SCORE: 922 Bonus ------- None Cogmind --------- Core Integrity 0/250 Matter 290/300 Energy 240/250 System Corruption 0% Temperature Cool (0) Movement Core (500) Ox9 Location -10/Mines Parts ------- > --- POWER (1) -------- Ion Engine > --- PROPULSION (2) --- (None) > --- UTILITY (2) ------ Large Storage Unit > --- WEAPON (2) ------- Grenade Launcher > --- INVENTORY (15) --- Ion Engine Improved Targeting Computer Improved Targeting Computer Improved Propulsion Shielding Heavy Armor Plating Improved Light Armor Plating Shield Generator Shield Generator Shield Generator Assault Rifle Autogun Autogun Grenade Launcher Peak State ------------ > --- POWER ------------ Light Deuterium Engine > --- PROPULSION ------- Light Treads Light Treads > --- UTILITY ---------- Large Storage Unit Hardlight Generator > --- WEAPON ----------- Autogun Grenade Launcher > --- INVENTORY -------- Ion Engine Improved Targeting Computer Improved Targeting Computer Improved Propulsion Shielding Heavy Armor Plating Improved Light Armor Plating Shield Generator Shield Generator Shield Generator Autogun Autogun Autogun Grenade Launcher [Rating: 15] Favorites ----------- Power Ion Engine Engine Ion Engine Propulsion Light Treads Treads Light Treads Utility Large Storage Unit Device Shield Generator Storage Large Storage Unit Weapon Autogun Ballistic Gun Autogun Launcher Grenade Launcher Build | -11 -10 -10 ------- Run | Yrd Mat Min Slots Evolved . | . . . Power . | . . . Propulsion . | . . . Utility . | . . . Weapon . | . . . Parts Attached 19 | 6 9 4 Power 5 | 1 2 2 Engine 5 | 1 2 2 Core . | . . . Reactor . | . . . Propulsion 2 | 2 . . Treads 2 | 2 . . Leg . | . . . Wheel . | . . . Hover . | . . . Flight . | . . . Utility 4 | 1 2 1 Device 2 | . 1 1 Storage 2 | 1 1 . Processor . | . . . Hackware . | . . . Protection . | . . . Artifact . | . . . Weapon 8 | 2 5 1 Energy Gun . | . . . Energy Cannon . | . . . Ballistic Gun 6 | 2 3 1 Ballistic Cannon . | . . . Launcher 2 | . 2 . Special Weapon . | . . . Impact Weapon . | . . . Slashing Weapon . | . . . Piercing Weapon . | . . . Special Melee Weapon . | . . . Unidentified Prototypes . | . . . Parts Lost 7 | . 1 6 Power 1 | . . 1 Propulsion 2 | . . 2 Utility 1 | . . 1 Weapon 3 | . 1 2 Highest Loss Streak 2 | . 1 2 To Critical Strikes . | . . . Average Backups 11 | . 9 13 Power 1 | . 1 1 Propulsion . | . . . Utility 4 | . 2 7 Weapon 4 | . 4 4 Tool/Special . | . . . Unused Backups 14 | . 2 12 Power . | . . . Propulsion 1 | . 1 . Utility 10 | . 1 9 Weapon 3 | . . 3 Tool/Special . | . . . Average Slot Usage (%) 85 | . 98 70 Engine 13 | . 14 13 Treads 20 | . 27 12 Device 6 | . 5 8 Storage 17 | . 21 14 Ballistic Gun 17 | . 17 17 Launcher 7 | . 10 3 Peak Build Rating 15 | 6 11 15 Average Rating 9 | 3 8 10 On Entrance 5 | . 6 11 Avg Prop Armor Cover (%) . | . . . Naked Turns . | . . . Heaviest Build 36 | 13 36 36 Greatest Support 40 | 40 40 40 Greatest Overweight (x) 11 | . . 11 Average Overweight (x) 1 | . . 3 Largest Inventory Capacity 15 | 8 15 15 Average Capacity 14 | 7 14 15 Most Carried 15 | 1 15 15 Average Carried 11 | . 9 14 Final Capacity 15 | 8 15 15 Final Carried 15 | 1 15 14 Class Distribution -------------------- 100% | Mutant Dominant Class ---------------- Mutant | -10/Materials Mutant | -10/Mines Resources | -11 -10 -10 ----------- Run | Yrd Mat Min Matter Collected 817 | 213 173 431 Remotely . | . . . Salvage Created 524 | 51 400 73 Parts 40 | 3 37 . Haulers Intercepted . | . . . Recyclers Shooed 1 | . 1 . Parts Field Recycled . | . . . Retrieved Matter . | . . . Parts Self-Destructed . | . . . Prevented . | . . . Parts Restored . | . . . Kills | -11 -10 -10 ------- Run | Yrd Mat Min Combat Hostiles Destroyed 28 | . 18 10 Melee 3 | . . 3 Guns 12 | . 6 6 AOE 13 | . 12 1 Classes Destroyed 6 | 1 4 1 Worker 1 | . 1 . Builder 3 | . 3 . Recycler 2 | 1 1 . Swarmer 12 | . 12 . Grunt 6 | . 6 . Assembled 10 | . . 10 Best Kill Streak 9 | 1 9 5 Combat Bots Only 6 | . 6 5 Max Kills in Single Turn 5 | 1 5 1 Gunslinging . | . . . Exploded 3 | . 3 1 Melee 1 | . . 1 Uniques/NPCs Destroyed . | . . . Combat | -11 -10 -10 -------- Run | Yrd Mat Min Hostile Shots Fired 133 | . 63 70 Missed 32 | . 16 16 Hits 101 | . 47 54 Melee 15 | . . 15 Projectile 86 | . 47 39 Damage Taken 1402 | . 448 954 Core 255 | . 46 209 Absorbed by Shields 76 | . . 76 Regen/Repaired (Parts) 141 | . 141 . Core Remaining (%) 100 | 100 . . Volleys Fired 79 | . 49 30 Largest 2 | . 2 2 Hottest 50 | . 50 46 Shots Fired 117 | . 71 46 Gun 101 | . 59 42 Cannon . | . . . Launcher 16 | . 12 4 Special . | . . . Kinetic 101 | . 59 42 Thermal . | . . . Explosive 16 | . 12 4 Electromagnetic . | . . . Robot Hit Streak 5 | . 5 4 Robot Miss Streak 6 | . 3 6 Penetration Max . | . . . Secondary Targets 2 | . 2 . Max Gunslinging Chain 1 | . 1 . Shots Hit Robots 55 | . 31 24 Core Hits 55 | 1 36 18 Critical Kills 1 | . 1 . Critical Parts Destroyed . | . . . Critical Strikes 1 | . 1 . Destroy 1 | . 1 . Melee Attacks . | . . . Impact . | . . . Slashing . | . . . Piercing . | . . . Sneak Attacks . | . . . Combat Hostiles . | . . . Follow-up Attacks . | . . . Damage Inflicted 1699 | 4 1170 525 Guns 670 | . 331 339 Cannons . | . . . Explosions 936 | . 818 118 Melee . | . . . Ramming 93 | 4 21 68 Kinetic 670 | . 331 339 Thermal . | . . . Explosive 936 | . 818 118 Electromagnetic . | . . . Impact . | . . . Slashing . | . . . Piercing . | . . . Highest Corruption . | . . . Average Corruption . | . . . Corruption Purged . | . . . Corruption Blocked . | . . . Overload Shots . | . . . Overflow Damage 21 | . 21 . Projectiles . | . . . Explosions 21 | . 21 . Melee . | . . . Knockbacks . | . . . Impact . | . . . Kinetic . | . . . Secondary . | . . . Self-Inflicted Damage 70 | . 30 40 Shots 4 | . 3 1 Rammed 21 | 1 3 17 Targets Rammed 24 | 2 3 19 Kicked . | . . . Crushed 3 | 1 . 2 Highest Temperature 12 | . 2 12 Average Temperature 5 | . 1 5 Received Heat Transfer 72 | . 72 . Siege Activations . | . . . Martial Activations . | . . . Shielding Activations . | . . . Robots Disrupted . | . . . Combat Hostiles . | . . . Robots Corrupted . | . . . Combat Hostiles . | . . . Parts Fried . | . . . Impact Corruptions . | . . . Robots Melted . | . . . Combat Hostiles . | . . . Parts Melted . | . . . Heat Transferred . | . . . Parts Sabotaged . | . . . Parts Stolen . | . . . Parts Stripped . | . . . Power Chain Reactions . | . . . Alert | -11 -10 -10 ------- Run | Yrd Mat Min Maximum Alert Level 1 | . 1 . Low Security (%) 59 | 100 22 100 Level 1 40 | . 77 . Level 2 . | . . . Level 3 . | . . . Level 4 . | . . . Level 5 . | . . . High Security . | . . . Max Security . | . . . Peak Influence 365 | 5 365 85 Initial 85 | . . 85 Average 120 | . 223 7 Influence Increases 667 | 5 648 14 Destroy 0b10 Robot/C 360 | . 360 . Destroy 0b10 Robot/NC 30 | 5 25 . Destroy Leader 80 | . 80 . Successful Hack 25 | . 25 . Disable Machine 15 | . 15 . Destroy Structure 82 | . 68 14 Lose Combat Pursuer 75 | . 75 . Influence Decreases 666 | 5 429 232 Entered New Map 134 | . . 134 Time Decay 512 | 5 419 88 Lost Part 20 | . 10 10 Squads Dispatched 5 | . 4 1 Investigation 3 | . 2 1 Extermination . | . . . Reinforcement 2 | . 2 . Assault . | . . . Garrison . | . . . Intercept . | . . . Searches Triggered . | . . . Construction Impeded . | . . . Haulers Reinforced . | . . . Active Scanning Responses . | . . . Cargo Convoy Interrupts . | . . . Stealth | -11 -10 -10 --------- Run | Yrd Mat Min Distress Signals 2 | . 1 1 Communications Jammed . | . . . Distress Signals . | . . . Times Spotted 46 | . 33 13 Peak Tracking Total 6 | . 6 3 Tactical Retreats 2 | . 2 . Traps | -11 -10 -10 ------- Run | Yrd Mat Min Traps Triggered 1 | . 1 . Indirectly . | . . . Trap Hack Attempts . | . . . Triggered . | . . . Disarmed . | . . . Reprogrammed . | . . . Reused . | . . . Traps Extracted . | . . . Installed . | . . . Triggered . | . . . Machines | -11 -10 -10 ---------- Run | Yrd Mat Min Machines Disabled 1 | . 1 . Max in Single Turn 1 | . 1 . Machines Repaired . | . . . Machines Dismantled . | . . . Machines Sabotaged . | . . . Overloaded Fab Kills . | . . . Hacking | -11 -10 -10 --------- Run | Yrd Mat Min Machines Accessed 8 | . 7 1 Terminals 6 | . 6 . Fabricators . | . . . Repair Stations 1 | . 1 . Recycling Units . | . . . Scanalyzers . | . . . Garrison Access . | . . . Total Hacks 25 | . 24 1 Successful 14 | . 13 1 Failed 11 | . 11 . Catastrophic 3 | . 3 . Database Lockouts . | . . . Manual 18 | . 18 . Terminals 20 | . 20 . Fabricators . | . . . Repair Stations 4 | . 4 . Recycling Units . | . . . Scanalyzers . | . . . Garrison Access . | . . . Terminal Hacks 7 | . 6 1 Part Schematic 3 | . 3 . Robot Analysis 1 | . 1 . Prototype ID Bank 1 | . 1 . Open Door 1 | . . 1 Zone Layout 1 | . 1 . Fabricator Hacks . | . . . Repair Station Hacks 4 | . 4 . Scan Component 2 | . 2 . Repair 2 | . 2 . Recycling Unit Hacks . | . . . Scanalyzer . | . . . Garrison Access Hacks . | . . . Unauthorized Hacks 3 | . 3 . Terminals 3 | . 3 . Botnet 3 | . 3 . Fabricators . | . . . Repair Stations . | . . . Recycling Units . | . . . Scanalyzers . | . . . Garrison Access . | . . . Data Cores Recovered . | . . . Used . | . . . Hacking Detections 7 | . 7 . Full Trace Events 2 | . 2 . Feedback Events . | . . . Feedback Blocked . | . . . Robot Schematics Acquired . | . . . Robots Built . | . . . Authchips . | . . . Time . | . . . Total Robot Build Rating . | . . . Part Schematics Acquired 3 | . 3 . Parts Built . | . . . Authchips . | . . . Time . | . . . Total Part Build Rating . | . . . Part Studies Acquired . | . . . Parts Repaired 2 | . 2 . Time 52 | . 52 . Parts Recycled . | . . . Recycled Matter . | . . . Retrieved Matter . | . . . Retrieved Components . | . . . Parts Scanalyzed . | . . . Part Schematics Acquired . | . . . Parts Damaged . | . . . Bothacking | -11 -10 -10 ------------ Run | Yrd Mat Min Used RIF Installer . | . . . Robots Hacked . | . . . Non-combat . | . . . Combat . | . . . Robot Hacks Applied . | . . . Relay Couplers Released . | . . . Fabnet Peak Effective % . | . . . Robots Rewired . | . . . Allies Hacked . | . . . Hacks Repelled . | . . . Allies | -11 -10 -10 -------- Run | Yrd Mat Min Total Allies . | . . . Largest Group . | . . . Highest-Rated Group . | . . . Highest-Rated Ally . | . . . Total Orders . | . . . Ally Attacks . | . . . Total Damage . | . . . Kills . | . . . Allies Corrupted . | . . . Allies Melted . | . . . Intel | -11 -10 -10 ------- Run | Yrd Mat Min Active Infowar (turns) . | . . . Robot Analysis Total 1 | . 1 . Derelict Logs Recovered 1 | . . 1 Drone Launches . | . . . Drone Recoveries . | . . . Exploration | -11 -10 -10 ------------- Run | Yrd Mat Min Turns Passed 2320 | 67 1210 1043 Spaces Moved 943 | 38 627 278 Core 111 | 6 . 105 Treads 832 | 32 627 173 Legs . | . . . Wheels . | . . . Hover . | . . . Flight . | . . . Fastest Speed 50 | 50 160 160 Average Speed 199 | 142 160 297 Slowest Speed 600 | 160 160 600 Overloaded Moves . | . . . Propulsion Burnouts . | . . . Robots Hopped . | . . . Potential Cave-ins . | . . . Cave-ins Triggered . | . . . Exploration Rate (%) 51 | 3 93 58 Regions Visited 2 Branch Regions 1 Pre-discovered Areas . | . . . Known Exits Taken . | . . . Unknown Exits Taken 2 | 1 1 . Scrap Searched 1 | . . 1 Spaces Dug 12 | . 12 . Terrain Destroyed 86 | . 62 24 Melee . | . . . Projectile . | . . . AOE 86 | . 62 24 Terrain Rammed . | . . . Walls Destroyed . | . . . Machines Disabled . | . . . Actions | -11 -10 -10 --------- Run | Yrd Mat Min Total 1258 | 47 762 449 Wait 156 | 1 52 103 Move 941 | 37 626 278 Hop . | . . . Pick Up 19 | 1 13 5 Fast Attach 14 | 6 6 2 Attach 3 | . 1 2 Detach 1 | . 1 . Swap 8 | . 5 3 Drop 13 | . 6 7 Fire 79 | . 49 30 Melee . | . . . Ram . | . . . Kick . | . . . Crush 24 | 2 3 19 Escape Stasis . | . . . Rewire . | . . . Trap . | . . . Miscellaneous . | . . . Route ------- -11/Scrapyard -10/Materials (discovered 5 exits: [*Mat x3] / *Min / [*Sub]) -10/Mines History --------- Turn | Location | Event 2 | -11/Scrapyard | Met Revision 17 4 | -11/Scrapyard | Discovered new exit (range 15) 68 | -11/Scrapyard | Entered Materials 204 | -10/Materials | Discovered new exit (range 15) 307 | -10/Materials | Build established: Mutant 461 | -10/Materials | Discovered new exit (range 6) 501 | -10/Materials | Discovered new exit (range 20) 757 | -10/Materials | Discovered new exit (range 7) 884 | -10/Materials | Repaired Lgt. Treads 912 | -10/Materials | Repaired Lgt. Treads 1256 | -10/Materials | Discovered new exit (range 15) 1278 | -10/Materials | Entered Mines 1345 | -10/Mines | Met a Derelict shopkeep closing up shop 1413 | -10/Mines | Assembled infested the area 1418 | -10/Mines | Assisted by a Guerilla fighting off Assembled 1702 | -10/Mines | Core integrity fell below 50% 1958 | -10/Mines | Learned Materials security intel 2269 | -10/Mines | Core integrity fell below 20% 2321 | -10/Mines | Destroyed self with Grenade Launcher Last Messages --------------- 01872_ K-01 Serf collects debris. 01958_ Acquired derelict log, extracted data. Data stored: Materials security intel. 02038_ T-07 Excavator is excavating. 02158_ Searching scrap... 02158_ Found Sml. Laser. 02158_ Found Med. Battery. 02158_ Found Lrg. Battery. 02158_ Found 44 Matter. 02159_ Acquired 44 matter. 02193_ Acquired 11 matter. 02252_ as-80699 sneak attacks. 02252_ T-07 Excavator system corrupted by crushing effect. 02253_ T-07 Excavator system terminally corrupted. 02265_ Knocked back. 02271_ as-80699 destroyed. 02313_ Acquired 12 matter. 02319_ Acquired 4 matter. 02319_ Autogun destroyed. 02321_ Acquired 10 matter. Map ----- +----------------------------------------------------+ | ?????????# *= #?????????????#*### | | ????????## !%! #?????????????#% ! | | ????????# !! ##?????????????# ! | | ????????# ##??????????????##=## | | ????????# ##????????????????#%#? | | ????????# #?????????????????#*#? | | ????????## #????????????????? !#? | | ?????????### ##????????????????###? | | ???????????## #???????????????????? | | ????????????# #???????????????????? | | ????????????# #???????????????????? | | ????????????# % #???????????????????? | | ????????????# #### #??????????????? | | ????????????# =% #??????????????? | | ????????????# #######??????????????? | | ????????????# #????????????????????? | | ????????????# %#????????????????????? | | ????????????# #????????????????????? | | ????????????# #????????????????????? | | ????????????# #????????????????????? | | ????????????# #????????????????????? | | ????????????# #????????????????????? | | ????????????#= #????????????????????? | | ?# ??????#%=#????????????????????? | | ?# s###* #????????????????????? | | ??? """ ss @ #????????????????????? | | ??? """ ## ###????????????????????? | | ???? """????????????????????????????? | | ????????????????????????????????????? | | ????????????????????????????????????? | | ????????????????????????????????????? | | ????????????????????????????????????? | | | | | | | | | | | | | | | | | | | | | | | | | | | | | | | | | | | | | +----------------------------------------------------+ Best States ------------- Heat Dissipation 25 Energy Generation 14 Energy Capacity 250 Matter Stores 300 Matter Capacity 300 Sight Range 16 Terrain Scan Density 10 Evasion (%) 40 Recoil Reduction 2 Item Schematics ----------------- Hcp. Storage Unit | -10/Materials | Hacked Assault Rifle | -10/Materials | Hacked Huge Storage Unit | -10/Materials | Hacked Robot Schematics ------------------ None Fabricated ------------ Nothing Repaired ---------- Lgt. Treads | 48% | -10/Materials Lgt. Treads | 50% | -10/Materials Studied --------- None Alien Tech Used ----------------- None Achievements -------------- None Challenges ------------ None Game ------ Seed EtherialScatterAxe Manual? 0 Play Time 00:14:27 Cumulative 326.3 hours Start 2025.11.23 @ 20:44:48 End 2025.11.23 @ 20:56:54 Sessions 1 Manual Loads 0 Difficulty Rogue Special Mode None Game No. 341 Rogue 337 Adventurer 3 Explorer 1 Win Type - Total 2 Types 2/0/0/0/0/0/0/0/0/0 Lore% 82 Gallery% 78 Achievement% 63 Wizard Run 0 Options --------- Layout 0 ASCII 0 Keyboard 0 Movement Mouse Keybinds 0 Fullscreen 2 Font 18/SmallcapsGlow Map View 76x50 Zoom Use 0% Tactical HUD 1 Map Filters NONE Filters NONE Steam 1 RUN: 99d091cb-fdd4-4f27-8a9b-ff19c9c4e23c